[Event "21st Bangkok CC Open 2024"]
[Site "Bangkok"]
[Date "2024.04.18"]
[Round "6.3"]
[White "Cao, Qingfeng"]
[Black "Nie, Xinyang"]
[Result "1-0"]
[ECO "E11"]
[WhiteElo "2038"]
[BlackElo "2433"]
[Annotator "TA"]
[PlyCount "121"]
[EventDate "2024.04.13"]
[EventType "swiss"]
[EventCountry "THA"]
[SourceTitle "playchess.com"]
[Source "ChessBase"]
[SourceQuality "1"]
[TimeControl "40/5400+30:1800+30"]

{[%evp 29,121,50,41,0,0,0,0,0,0,0,14,0,29,41,28,40,45,23,45,-14,0,-29,0,0,30,38,38,15,9,7,9,13,21,0,25,35,113,113,168,137,215,152,167,146,245,48,96,17,52,52,63,73,151,6,6,6,93,112,109,95,110,94,100,102,94,68,78,67,139,87,513,179,246,240,225,186,202,122,182,174,2312,2060,1665,1749,7689,6969,29957,11861,5933,5272,2214,1945,1848,1687]} 1. d4 {[%emt 0:00:03]} Nf6 {[%emt 0:00:04]} 2. c4 {[%emt 0:00:06]} e6 {[%emt 0:00:02]} 3. Nf3 {[%emt 0:00:07]} Bb4+ {[%emt 0:00:05]} 4. Nbd2 {[%emt 0:01:15]} d5 {[%emt 0:00:40]} 5. a3 {[%emt 0:03:08]} Be7 {[%emt 0:00:54]} 6. g3 {[%emt 0:01:52]} O-O {[%emt 0:00:36]} 7. Bg2 {[%emt 0:00:10]} b6 {[%emt 0:00:36]} 8. cxd5 {[%emt 0:00:48]} exd5 {[%emt 0:00:05]} 9. O-O {[%emt 0:00:19]} a5 {[%emt 0:01:29]} 10. Nb1 {[%emt 0:03:28]} Bb7 {[%emt 0:05:07]} 11. Nc3 {[%emt 0:00:47]} c5 {[%emt 0:07:58]} 12. Bf4 {[%emt 0:02:25]} Nc6 {[%emt 0:04:41]} 13. e3 {[%emt 0:08:12]} Ne4 {[%emt 0:03:10]} 14. h4 {[%emt 0:01:17]} Nxc3 {[%emt 0:08:20]} 15. bxc3 {[%emt 0:00:01]} a4 {[%emt 0:00:47]} 16. Ne5 {[%emt 0:09:42]} Nxe5 {[%emt 0:05:32]} 17. Bxe5 {[%emt 0:00:26]} Qd7 {[%emt 0:01:40]} 18. dxc5 {[%emt 0:17:46]} bxc5 {[%emt 0:00:35]} 19. Rb1 {[%emt 0:02:07]} Bc6 {[%emt 0:05:41]} 20. Rb6 {[%emt 0:07:49]} Rae8 {[%emt 0:02:50]} 21. c4 {[%emt 0:04:36]} Bd8 {[%emt 0:01:00]} 22. Rxc6 $1 {[%emt 0:00:21]} Qxc6 {[%emt 0:00:03]} 23. Bxd5 {[%emt 0:01:50]} (23. Qxd5 $2 Qxd5 24. cxd5 Rxe5 $19) 23... Qa6 {[%emt 0:02:29]} 24. Qa1 {[%emt 0:08:40]} ({White should play} 24. Bf4 $14) 24... Qg6 {[%emt 0:03:59]} 25. Kh2 {[%emt 0:00:37]} Re7 {[%emt 0:05:05]} 26. e4 {[%emt 0:01:44]} Bc7 {[%emt 0:01:47]} 27. Bxc7 $1 {[%emt 0:00:49]} Rxc7 {[%emt 0:00:03]} 28. Rb1 {[%emt 0:00:14]} (28. Qe5 $5 Rcc8 29. Rb1 $16) 28... Re7 {[%emt 0:02:54]} 29. Rb5 {[%emt 0:02:14]} Kh8 {[%emt 0:00:51]} 30. Qb1 {[%emt 0:00:56]} (30. Rxc5 $2 Qb6 31. Rb5 (31. Qd4 $2 Rc7 $19) 31... Qxf2+ 32. Kh3 f5 $19) 30... Ree8 {[%emt 0:06:06]} 31. f4 {[%emt 0:03:28]} Rc8 {[%emt 0:03:15]} 32. Qd1 {[%emt 0:02:13]} f6 {[%emt 0:11:15]} (32... h6 $14) 33. Qxa4 $16 {[%emt 0:03:46]} Qh5 {[%emt 0:00:03]} (33... Qh6 $16 {keeps fighting.}) 34. Qc2 $18 {[%emt 0:02:11]} Qf3 {[%emt 0:00:27]} (34... h6 $16 {was necessary.}) 35. Rb3 {[%emt 0:02:11]} Qf1 {[%emt 0:00:04]} 36. a4 {[%emt 0:02:13]} h6 {[%emt 0:01:06]} (36... Rb8 $16 {is a better defense.}) 37. f5 $2 {[%emt 0:00:18]} ({White should try} 37. e5 $18 {Hoping for Rb1.} Rb8 (37... fxe5 $2 38. Rb1 $18) 38. exf6 Rxb3 39. fxg7+ (39. Qxb3 Qe2+ 40. Bg2 Rxf6 $11) 39... Kxg7 40. Qxb3 Qe2+ 41. Bg2) 37... Qe1 {[%emt 0:01:07]} (37... Rb8 $14) 38. Qa2 {[%emt 0:00:34]} (38. Rb1 $1 $16 {[%cal Rb1e1]} Qe3 39. Rb5) 38... Rfe8 {[%emt 0:07:36]} 39. Rb1 {[%emt 0:02:22]} Qa5 {[%emt 0:03:44]} 40. Rb5 {[%emt 0:03:26]} Qe1 {[%emt 0:00:09]} 41. Qb1 {[%emt 0:08:41]} (41. a5 $16) 41... Qe2+ $1 $11 {[%emt 0:09:59]} 42. Kh3 {[%emt 0:01:11]} Kh7 {[%emt 0:00:03]} (42... h5 $1 $11) 43. Rb2 $1 $16 {[%emt 0:03:19]} (43. a5 Rb8 $11) 43... Rb8 {[%emt 0:00:02]} 44. Rxe2 {[%emt 0:07:31]} ({Much worse is} 44. Rxb8 $6 Rxb8 45. Qxb8 Qf1+ 46. Kh2 (46. Kg4 Qd1+ 47. Kf4 Qf1+ 48. Ke3 Qe1+ 49. Kd3 Qd1+ 50. Ke3 Qe1+ 51. Kd3 Qd1+ 52. Kc3 Qc1+ 53. Kd3 Qd1+ $11) 46... Qe2+ 47. Kh3 Qf1+ 48. Kh2 (48. Kg4 Qd1+ 49. Kf4 Qc1+ 50. Kf3 Qf1+ 51. Ke3 Qe1+ 52. Kf3 Qd1+ 53. Kf2 Qd2+ 54. Kf3 Qd3+ 55. Kg2 Qe2+ 56. Kg1 Qe1+ 57. Kg2 Qe2+ 58. Kg1 Qe1+ 59. Kg2 Qe2+ $11) 48... Qf2+ 49. Kh3 Qf1+ $11) 44... Rxb1 {[%emt 0:00:04]} 45. Ra2 $1 {[%emt 0:00:14]} Reb8 {[%emt 0:00:59] [#]} 46. e5 $1 {[%emt 0:03:47]} fxe5 {[%emt 0:01:36] [#]} 47. f6 $1 {[%emt 0:00:23]} R1b6 $1 {[%emt 0:01:32]} 48. a5 {[%emt 0:02:20]} Ra6 $1 {[%emt 0:00:06]} 49. f7 {[%emt 0:00:26]} Rf8 $2 {[%emt 0:00:51][%mdl 8192]} (49... g6 $16) 50. h5 $2 {[%emt 0:01:01]} (50. Bb7 Ra7 51. Be4+ g6 52. h5) 50... g5 $18 {[%emt 0:00:29]} 51. Kg4 {[%emt 0:00:24]} Kg7 {[%emt 0:00:06]} 52. Kf5 {[%emt 0:00:15]} Rb8 {[%emt 0:01:42]} 53. Ra3 {[%emt 0:03:00]} Rb1 {[%emt 0:01:25]} (53... Rb2 $16 {was worth a try.}) 54. Kxe5 $18 {[%emt 0:00:25]} Rf6 $2 {[%emt 0:00:42]} (54... Rb2 55. Ke4 Rf2) 55. f8=Q+ {[%emt 0:03:02]} Rxf8 {[%emt 0:00:03]} 56. a6 {[%emt 0:00:11]} Re1+ {[%emt 0:13:27]} 57. Kd6 {[%emt 0:00:21]} Rd8+ {[%emt 0:00:12]} 58. Kxc5 {[%emt 0:00:58]} Rc8+ {[%emt 0:00:11]} 59. Kd6 {[%emt 0:00:23]} Rd8+ {[%emt 0:00:04]} 60. Kc7 {[%emt 0:00:34]} Ree8 {[%emt 0:00:32]} 61. a7 {[%emt 0:00:24]} 1-0

[Event "21st Bangkok CC Open 2024"]
[Site "Bangkok"]
[Date "2024.04.18"]
[Round "6.4"]
[White "Dinh Nho Kiet"]
[Black "Pham Tran Gia Phuc"]
[Result "1/2-1/2"]
[ECO "E39"]
[WhiteElo "2245"]
[BlackElo "2423"]
[Annotator "TA"]
[PlyCount "76"]
[EventDate "2024.04.13"]
[EventType "swiss"]
[EventCountry "THA"]
[SourceTitle "playchess.com"]
[Source "ChessBase"]
[SourceQuality "1"]
[TimeControl "40/5400+30:1800+30"]

{[%evp 17,76,-27,-17,-20,0,0,0,0,0,0,0,0,0,10,4,5,14,9,28,34,27,0,0,0,10,11,22,0,0,0,0,0,0,0,0,0,0,0,0,-10,0,0,0,0,0,-14,-14,-14,0,0,0,0,0,0,0,0,0,0,0,0,0]} 1. d4 {[%emt 0:00:07]} Nf6 {[%emt 0:00:11]} 2. c4 {[%emt 0:00:03]} e6 {[%emt 0:00:05]} 3. Nc3 {[%emt 0:00:07]} Bb4 {[%emt 0:00:05]} 4. Qc2 {[%emt 1:32:13]} c5 {[%emt 0:00:06]} 5. dxc5 {[%emt 0:00:00]} O-O {[%emt 0:00:08]} 6. Nf3 {[%emt 0:00:00]} Na6 {[%emt 0:00:07]} 7. a3 {[%emt 0:00:00]} Bxc3+ {[%emt 0:00:06]} 8. Qxc3 {[%emt 0:00:00]} Nxc5 {[%emt 0:00:05]} 9. e3 {[%emt 0:00:00]} a5 {[%emt 0:00:06]} 10. Be2 {[%emt 0:00:00]} a4 {[%emt 0:00:08]} 11. O-O {[%emt 0:00:00]} b6 {[%emt 0:00:09]} 12. Bd2 {[%emt 0:00:00]} Bb7 {[%emt 0:20:37]} 13. Rad1 {[%emt 0:00:00]} Nfe4 {[%emt 0:06:48]} 14. Qc2 {[%emt 0:00:00]} Nxd2 {[%emt 0:01:14]} 15. Qxd2 {[%emt 0:00:00]} Qe7 {[%emt 0:07:33]} 16. Nd4 {[%emt 0:00:00]} Rad8 {[%emt 0:06:20]} 17. Qb4 {[%emt 0:00:00]} e5 {[%emt 0:17:23]} 18. Nf5 {[%emt 0:00:00]} Qg5 {[%emt 0:02:56][%csl Gb7][%cal Rg5g2] [#]} 19. Ng3 {[%emt 0:00:00] Active counter play!} (19. Qxb6 $2 Qxg2#) 19... Qf6 {[%emt 0:04:31] The position is equal.} 20. Rd2 {[%emt 0:00:00]} d5 {[%emt 0:04:17]} 21. cxd5 {[%emt 0:00:00]} Rxd5 {[%emt 0:00:08]} 22. Rfd1 {[%emt 0:00:00]} Rfd8 {[%emt 0:07:08]} 23. Bb5 {[%emt 0:00:00]} Rxd2 {[%emt 0:00:53]} 24. Rxd2 {[%emt 0:00:00]} Rxd2 {[%emt 0:00:08]} 25. Qxd2 {[%emt 0:00:00][%cal Ob5a4]} g6 {[%emt 0:00:07]} 26. f3 {[%emt 0:00:00]} h5 {[%emt 0:01:40]} 27. Nf1 {[%emt 0:00:02]} Bc6 {[%emt 0:04:36]} 28. Bc4 {[%emt 0:00:36]} h4 {[%emt 0:07:07][%cal Oh4h3]} 29. h3 {[%emt 0:01:25]} b5 {[%emt 0:01:01]} 30. Bd5 {[%emt 0:01:58]} Kg7 {[%emt 0:01:56]} 31. Qc3 {[%emt 0:00:59]} Bxd5 {[%emt 0:01:21]} 32. Qxc5 $11 {[%emt 0:00:01][%mdl 4096] Endgame. KQB-KQN} Bc4 {[%emt 0:00:27][%cal Oe5e4]} 33. Nd2 {[%emt 0:00:57]} e4 {[%emt 0:03:01]} 34. Nxe4 {[%emt 0:03:41]} Qxb2 {[%emt 0:00:09]} 35. Nd6 {[%emt 0:00:20]} ({Much worse is} 35. Kh2 Bf1 36. Qc3+ (36. Qg5 $2 b4 $19) 36... Qxc3 37. Nxc3 Kf8 $17) 35... Kh7 {[%emt 0:01:48]} 36. Ne4 {[%emt 0:03:35]} Kg7 {[%emt 0:01:44]} 37. Nd6 {[%emt 0:00:16]} ({Don't play} 37. Kh2 Bf1 38. Qc3+ (38. Qg5 $2 b4 $19) 38... Qxc3 39. Nxc3 Kf8 $17) 37... Kh7 {[%emt 0:00:40]} 38. Ne4 {[%emt 0:00:18]} Kg7 {[%emt 0:01:52] A balanced but interesting game.   Weighted Error Value: White=0.04 (flawless) /Black=0.04 (flawless) .  Inaccurate:     	White=1     	---        OK:         	White=16    	Black=9      Best:        	---       	Black=1} 1/2-1/2

[Event "21st Bangkok CC Open 2024"]
[Site "Bangkok"]
[Date "2024.04.18"]
[Round "6.5"]
[White "Bersamina, Paulo"]
[Black "Pranesh M"]
[Result "1/2-1/2"]
[ECO "C56"]
[WhiteElo "2424"]
[BlackElo "2538"]
[Annotator "TA"]
[PlyCount "140"]
[EventDate "2024.04.13"]
[EventType "swiss"]
[EventCountry "THA"]
[SourceTitle "playchess.com"]
[Source "ChessBase"]
[SourceQuality "1"]
[TimeControl "40/5400+30:1800+30"]

{[%evp 62,140,289,305,318,303,324,131,156,163,149,147,154,0,0,0,154,165,152,0,0,0,144,155,166,201,182,187,187,41,42,40,31,25,75,8,8,8,8,8,8,8,8,8,8,8,8,8,8,8,8,8,8,8,8,8,231,8,8,8,8,8,8,8,8,8,8,8,8,0,0,0,8,8,8,8,8,0,0,0,0]} 1. e4 {[%emt 0:03:08]} e5 {[%emt 0:00:06]} 2. Nf3 {[%emt 0:00:10]} Nc6 {[%emt 0:00:07]} 3. Bc4 {[%emt 0:00:04]} Nf6 {[%emt 0:00:30]} 4. d4 {[%emt 0:00:07]} exd4 {[%emt 0:00:25]} 5. e5 {[%emt 0:00:07]} Ne4 {[%emt 0:00:11]} 6. Qe2 {[%emt 0:01:25]} Nc5 {[%emt 0:00:42]} 7. c3 {[%emt 0:03:19] C56: Two Knights: 4 d4 exd4 5 0-0 Nxe4.} d3 {[%emt 0:09:31]} 8. Qe3 {[%emt 0:03:35]} Be7 {[%emt 0:02:12]} 9. b4 {[%emt 0:08:49] 9.0-0 deserves study.} Ne6 {[%emt 0:00:33]} 10. b5 {[%emt 0:00:32]} Na5 {[%emt 0:01:41]} 11. Bxd3 {[%emt 0:00:08]} d5 $146 {[%emt 0:02:42]} ({Predecessor:} 11... d6 12. O-O O-O 13. Nbd2 Nc5 14. Bc2 a6 15. Nb3 Nc4 16. Qe2 Nxb3 17. axb3 Nxe5 18. Nxe5 dxe5 19. Qxe5 {1-0 Pap,M (2403)-Ongut,T (2317) Budapest Vezerkepzo GM-A 03 2023 (9)}) 12. O-O {[%emt 0:03:12]} a6 {[%emt 0:06:14]} 13. bxa6 {[%emt 0:09:54]} b6 {[%emt 0:00:57]} 14. Nd4 {[%emt 0:04:41]} Bxa6 {[%emt 0:02:53]} 15. f4 {[%emt 0:04:43]} Bxd3 {[%emt 0:12:44]} 16. Qxd3 {[%emt 0:00:37]} Nxd4 {[%emt 0:03:49]} 17. cxd4 {[%emt 0:00:14]} f5 {[%emt 0:00:43]} 18. Qxf5 {[%emt 0:17:55]} Nb3 {[%emt 0:00:53]} 19. Qc2 {[%emt 0:01:35]} Nxa1 {[%emt 0:01:25]} 20. Qc6+ {[%emt 0:02:36]} Kf8 {[%emt 0:02:28]} 21. f5 {[%emt 0:02:02]} Qe8 {[%emt 0:08:57]} 22. Qxd5 {[%emt 0:02:34]} Rd8 {[%emt 0:01:57]} 23. Qc4 {[%emt 0:04:26]} Qd7 {[%emt 0:05:51]} 24. Bb2 {[%emt 0:06:51]} c5 {[%emt 0:02:07]} 25. f6 {[%emt 0:04:47]} gxf6 {[%emt 0:00:16]} 26. exf6 {[%emt 0:00:12]} Bd6 {[%emt 0:00:07]} 27. f7 {[%emt 0:00:44]} cxd4 {[%emt 0:02:09]} 28. Kh1 {[%emt 0:02:17]} Bc5 {[%emt 0:00:23]} 29. Bxa1 {[%emt 0:01:36]} h5 {[%emt 0:04:00]} 30. Qd3 {[%emt 0:02:41]} Qd5 {[%emt 0:04:12]} 31. Nd2 {[%emt 0:00:48]} Rh6 $2 {[%emt 0:02:59][%mdl 8192]} (31... Rd7 $1 $17 {keeps the pressure on.} 32. Nb3 (32. Rf5 Qxa2 33. Nb3 Rh6 $19) 32... Rxf7) 32. Qg3 $18 {[%emt 0:01:12]} Rh8 {[%emt 0:00:34]} 33. Nf3 $1 {[%emt 0:01:34]} Qf5 {[%emt 0:07:44]} (33... Qxf7 $2 34. Nd2 $18) (33... Kxf7 $2 34. Nxd4+ (34. Bxd4 Rhg8 $16) 34... Ke8 35. Qg7 $18) 34. Re1 {[%emt 0:01:30]} (34. Qe1 $1 $18 {is the precise move to win.} Qd5 (34... Qxf7 $2 35. Ne5 $18) 35. Nh4) 34... h4 $16 {[%emt 0:10:26]} (34... Kxf7 $2 35. Qc7+ (35. Ng5+ Kf6 $11) 35... Kf6 36. Nxd4 (36. Bxd4+ Rxd4 37. Nxd4 Rc8 $18) 36... Bxd4 37. Qe7+ (37. Qxb6+ Kf7 $18) (37. Bxd4+ Rxd4 38. Qe7+ Kg6 $18) 37... Kg6 38. Re6+ $18) (34... Qxf7 35. Ng5 Rg8 36. Nxf7) 35. Nxh4 {[%emt 0:01:03]} Qf6 {[%emt 0:00:04]} 36. Ng6+ {[%emt 0:02:01]} Kxf7 {[%emt 0:00:01]} 37. Ne5+ $2 {[%emt 0:00:58]} (37. Nxh8+ $16 Rxh8 38. Qg4) 37... Kf8 $11 {[%emt 0:00:08]} 38. Ng6+ $2 {[%emt 0:00:22]} (38. Ng4 $11 Qf5 39. Ne3 Rxh2+ (39... dxe3 40. Qg7+ Ke8 41. Qxh8+ Ke7 42. Qh4+ Ke8 43. Bc3 $14) 40. Qxh2 dxe3 41. Qh8+ Ke7 42. Qh4+ Ke8 43. Qh8+ Qf8 44. Qh5+ Qf7 45. Qh8+ Qf8 46. Qh5+ Qf7 47. Qh8+ Qf8) 38... Kf7 $1 $16 {[%emt 0:00:01]} 39. Nxh8+ {[%emt 0:00:30]} Rxh8 {[%emt 0:00:04]} 40. Qc7+ $2 {[%emt 0:00:51]} (40. Qg4 $1 $16 {[%cal Rg4d7]}) 40... Kg6 $11 {[%emt 0:00:14]} 41. Qg3+ {[%emt 0:30:29]} (41. Rd1 $11) 41... Kf7 $16 {[%emt 0:30:05]} 42. Qg4 $1 {[%emt 0:03:46]} Rh4 {[%emt 0:06:42]} 43. Qd7+ {[%emt 0:00:24]} Kg8 {[%emt 0:01:01] [#]} 44. h3 $1 {[%emt 0:00:00]} Rf4 {[%emt 0:00:00]} 45. Kg1 {[%emt 0:00:00]} (45. Re8+ $18 Bf8 46. Kh2) 45... Qf7 $14 {[%emt 0:00:00]} 46. Qd8+ {[%emt 0:00:00]} Kh7 {[%emt 0:00:00]} 47. Kh2 {[%emt 0:00:00]} Qxa2 {[%emt 0:00:00] [#]} 48. Re5 {[%emt 0:00:00]} (48. Re8 $1 $16) 48... Qf7 $1 $11 {[%emt 0:00:00]} 49. Bb2 {[%emt 0:00:00]} Rf6 {[%emt 0:00:00]} 50. Rd5 {[%emt 0:00:36]} (50. Bxd4 $2 {perishes.} Bd6 51. Qa8 Rf5 $19 (51... Bxe5+ 52. Bxe5 Rf5 53. Qh8+ Kg6 54. Bd4 $15)) 50... Qe6 $1 {[%emt 0:00:00]} 51. Qd7+ {[%emt 0:01:11]} (51. Bxd4 $2 Bd6+ 52. Qxd6 Qxd6+ 53. Rxd6 Rxd6 $19) 51... Kg6 {[%emt 0:00:00]} 52. Qxe6 {[%emt 0:00:46]} (52. Bxd4 $2 {too greedy.} Bd6+ 53. Qxd6 Qxd6+ 54. Rxd6 Rxd6 $19) 52... Rxe6 {[%emt 0:00:00]} 53. Bxd4 {[%emt 0:00:17]} Rd6 {[%emt 0:00:00]} 54. Rxd6+ {[%emt 0:00:48]} Bxd6+ {[%emt 0:00:00]} 55. Kg1 {[%emt 0:00:09]} b5 {[%emt 0:00:11]} 56. Kf2 {[%emt 0:00:25]} Kf5 {[%emt 0:02:03]} 57. Ke3 {[%emt 0:01:14]} Be7 {[%emt 0:01:40]} 58. Bb6 {[%emt 0:00:53]} Bd6 $2 {[%emt 0:01:35]} (58... Ke5 $11) 59. Ba7 $2 {[%emt 0:00:24]} ({Only move:} 59. g4+ $18 Kf6 60. Bd8+ Ke5 61. Bg5) 59... Ke5 $11 {[%emt 0:00:40]} 60. g4 {[%emt 0:00:53]} Be7 {[%emt 0:00:44]} 61. Bb8+ {[%emt 0:00:22]} Kd5 {[%emt 0:00:22]} 62. Kd3 {[%emt 0:00:45]} b4 {[%emt 0:00:16]} 63. Bf4 {[%emt 0:01:51]} b3 {[%emt 0:00:21]} 64. g5 {[%emt 0:00:47]} Ke6 {[%emt 0:00:20]} (64... b2 $5 65. Kc2 $8 Ke4 $11) 65. h4 {[%emt 0:00:38]} Kf5 {[%emt 0:00:05]} (65... b2 $5 66. Kc2 $8 Kf5 $11) 66. Bd2 {[%emt 0:00:23]} Kg4 {[%emt 0:00:41]} 67. g6 {[%emt 0:00:16]} b2 {[%emt 0:00:27]} 68. Kc2 {[%emt 0:00:09]} Bf6 {[%emt 0:00:10]} 69. Bb4 {[%emt 0:00:52]} Kh5 {[%emt 0:00:07]} 70. Ba3 {[%emt 0:00:12]} Kxg6 {[%emt 0:00:05]} 1/2-1/2

[Event "21st Bangkok CC Open 2024"]
[Site "Bangkok"]
[Date "2024.04.18"]
[Round "6.6"]
[White "Mitrabha, Guha"]
[Black "Deepan Chakkravarthy J."]
[Result "1/2-1/2"]
[ECO "D30"]
[WhiteElo "2537"]
[BlackElo "2428"]
[Annotator "TA"]
[PlyCount "95"]
[EventDate "2024.04.13"]
[EventType "swiss"]
[EventCountry "THA"]
[SourceTitle "playchess.com"]
[Source "ChessBase"]
[SourceQuality "1"]
[TimeControl "40/5400+30:1800+30"]

{[%evp 10,95,14,6,10,-2,-2,-23,-6,-8,0,-5,0,-13,0,0,0,-20,-14,-21,-22,-51,0,-6,-4,0,0,-6,0,0,0,0,0,0,0,0,0,0,0,0,0,0,0,0,0,0,0,0,0,0,0,0,0,0,0,0,0,0,0,0,0,0,0,0,0,0,0,0,0,0,0,0,0,0,0,0,0,0,0,0,0,0,0,0,0,0,0,0]} 1. Nf3 {[%emt 0:16:02]} c5 {[%emt 0:00:17]} 2. e3 {[%emt 0:00:32]} Nf6 {[%emt 0:00:13]} 3. d4 {[%emt 0:00:08]} e6 {[%emt 0:00:05]} 4. c4 {[%emt 0:00:11]} d5 {[%emt 0:00:35]} 5. a3 {[%emt 0:01:26]} dxc4 {[%emt 0:07:07]} 6. Bxc4 {[%emt 0:00:52]} a6 {[%emt 0:00:15]} 7. dxc5 {[%emt 0:08:10]} Qxd1+ {[%emt 0:00:11]} 8. Kxd1 {[%emt 0:00:01]} Bxc5 {[%emt 0:00:08] Black has an edge.} 9. b4 {[%emt 0:00:25]} Be7 {[%emt 0:00:22]} 10. Bb2 {[%emt 0:00:08]} Nbd7 {[%emt 0:02:35]} 11. Nbd2 {[%emt 0:00:25]} b6 {[%emt 0:00:54]} 12. Rc1 {[%emt 0:00:52]} Bb7 {[%emt 0:00:17]} 13. Bd3 {[%emt 0:00:24]} a5 {[%emt 0:07:32]} 14. Bb5 {[%emt 0:03:59] [#] Bxf6 would now be deadly.} axb4 {[%emt 0:07:19]} 15. axb4 {[%emt 0:03:00]} (15. Rc7 Bxf3+ 16. Nxf3 (16. gxf3 $2 Kd8 $17) 16... bxa3 (16... Kd8 17. Bxf6 Nxf6 18. Rb7 $11) 17. Bxf6 Bxf6 18. Bxd7+ (18. Rxd7 $2 Ra5 $19) 18... Kd8 $17) 15... Rc8 {[%emt 0:09:51]} ({Better is} 15... Ra7 $15) 16. Bxf6 {[%emt 0:25:31] The position is equal.} Rxc1+ {[%emt 0:09:50]} 17. Kxc1 {[%emt 0:00:19]} Bxf6 {[%emt 0:00:03]} (17... gxf6 $2 18. Nc4 $18) 18. Nc4 {[%emt 0:01:41] [#] Strongly threatening Rd1.} Ke7 {[%emt 0:00:05]} 19. Rd1 {[%emt 0:02:22]} ({Much weaker is} 19. Bxd7 Kxd7 20. Rd1+ Ke7 (20... Kc7 21. Nfe5 $15) 21. Nxb6 Rb8 $15) 19... Rd8 {[%emt 0:01:16]} 20. Rxd7+ {[%emt 0:00:35]} Rxd7 {[%emt 0:00:01]} 21. Bxd7 {[%emt 0:00:02]} Kxd7 {[%emt 0:00:08]} 22. Nxb6+ $11 {[%emt 0:00:05][%mdl 4096] Endgame. KBB-KNN} Kc7 {[%emt 0:03:01]} 23. Nc4 {[%emt 0:01:09]} Be7 {[%emt 0:03:34]} 24. Nce5 {[%emt 0:04:31]} f6 {[%emt 0:00:28]} 25. Nd3 {[%emt 0:00:05]} e5 {[%emt 0:02:37] And now ...e4 would win.} 26. Nfe1 {[%emt 0:00:06]} Kb6 {[%emt 0:05:19]} 27. Kb2 {[%emt 0:01:00]} Kb5 {[%emt 0:03:03][%cal Ob5c4]} 28. Kc3 {[%emt 0:00:13]} e4 {[%emt 0:00:43]} 29. Nc5 {[%emt 0:00:02]} Bxc5 {[%emt 0:00:06]} 30. bxc5 {[%emt 0:00:03]} Kxc5 {[%emt 0:00:04] KB-KN} 31. Nc2 {[%emt 0:00:05]} g5 {[%emt 0:02:10]} 32. Nd4 {[%emt 0:00:07]} Bc8 {[%emt 0:00:05]} 33. Nb3+ {[%emt 0:00:04]} Kd5 {[%emt 0:00:06]} 34. Kb4 {[%emt 0:00:04]} h5 {[%emt 0:00:25]} 35. Kb5 {[%emt 0:01:27]} h4 {[%emt 0:01:00]} 36. Nd4 {[%emt 0:00:28]} Bg4 {[%emt 0:03:54]} 37. Kb4 {[%emt 0:00:06]} Bc8 {[%emt 0:01:09]} 38. Nb5 {[%emt 0:00:07]} f5 {[%emt 0:01:27]} 39. Nc3+ {[%emt 0:00:33]} Ke5 {[%emt 0:00:10]} 40. Kc5 {[%emt 0:03:27]} f4 {[%emt 0:01:13]} 41. Nb5 {[%emt 0:31:14]} f3 {[%emt 0:35:34]} 42. g3 {[%emt 0:00:06]} Kf5 {[%emt 0:01:21]} 43. Nd6+ {[%emt 0:08:57]} Kg4 {[%emt 0:00:24][%cal Og4h3] Hoping for ...Kh3!} 44. Nxe4 {[%emt 0:12:39]} (44. Nxc8 $5 Kh3 $8 45. Nd6 Kxh2 46. Nxe4 $11) 44... hxg3 {[%emt 0:11:51]} 45. hxg3 {[%emt 0:05:51]} Kh3 {[%emt 0:00:07] ...g4 is the strong threat.} 46. Nxg5+ {[%emt 0:00:45]} Kg2 {[%emt 0:00:08]} 47. Ne4 {[%emt 0:00:16]} Bf5 {[%emt 0:02:42]} 48. Nd2 {[%emt 0:00:49] Weighted Error Value: White=0.03 (flawless) /Black=0.03 (flawless) .  Mistake:       	---       	Black=1      Inaccurate:     	White=1     	---        OK:         	White=26    	Black=19     Best:        	---       	Black=1} 1/2-1/2